[Event "January 2 Late 2024"]
[Site "https://www.chess.com"]
[Date "2024.01.02"]
[Round "6"]
[White "Caruana, Fabiano"]
[Black "Melkumyan, Hrant"]
[Result "1-0"]
[Board "3"]
[TimeControl "180+1"]
[WhiteFideId "2020009"]
[BlackFideId "13302485"]
[WhiteElo "3043"]
[BlackElo "2886"]
[WhiteTeam "USA"]
[BlackTeam "ARM"]
[WhiteClock "0:00:21"]
[BlackClock "0:00:00"]

1. c4 {[%clk 0:03:00]}  e6 {[%clk 0:02:59]} 2. Nc3 {[%clk 0:03:00]}  d5 {[%clk 0:02:59]} 3. d4 {[%clk 0:03:01]}  Be7 {[%clk 0:02:59]} 4. cxd5 {[%clk 0:03:01]}  exd5 {[%clk 0:03:00]} 5. Bf4 {[%clk 0:03:02]}  Nf6 {[%clk 0:03:00]} 6. e3 {[%clk 0:03:01]}  O-O {[%clk 0:03:01]} 7. Bd3 {[%clk 0:03:01]}  c5 {[%clk 0:02:59]} 8. Nf3 {[%clk 0:02:59]}  Bg4 {[%clk 0:02:56]} 9. dxc5 {[%clk 0:02:56]}  Bxc5 {[%clk 0:02:52]} 10. O-O {[%clk 0:02:54]}  Nc6 {[%clk 0:02:49]} 11. h3 {[%clk 0:02:50]}  Bxf3 {[%clk 0:02:24]} 12. Qxf3 {[%clk 0:02:51]}  d4 {[%clk 0:02:25]} 13. Ne4 {[%clk 0:02:26]}  Nxe4 {[%clk 0:02:25]} 14. Bxe4 {[%clk 0:02:26]}  g6 {[%clk 0:01:58]} 15. Rfd1 {[%clk 0:02:18]}  Qb6 {[%clk 0:01:45]} 16. Bxc6 {[%clk 0:02:09]}  bxc6 {[%clk 0:01:44]} 17. Be5 {[%clk 0:02:08]}  Rae8 {[%clk 0:01:13]} 18. exd4 {[%clk 0:02:04]}  Be7 {[%clk 0:00:59]} 19. d5 {[%clk 0:01:58]}  cxd5 {[%clk 0:00:56]} 20. Rxd5 {[%clk 0:01:58]}  Qe6 {[%clk 0:00:49]} 21. Bc3 {[%clk 0:01:53]}  Bd6 {[%clk 0:00:26]} 22. g3 {[%clk 0:01:48]}  Bc7 {[%clk 0:00:22]} 23. Rad1 {[%clk 0:01:40]}  Qc6 {[%clk 0:00:20]} 24. Kg2 {[%clk 0:01:36]}  Re6 {[%clk 0:00:20]} 25. Rd7 {[%clk 0:01:19]}  Qxf3+ {[%clk 0:00:19]} 26. Kxf3 {[%clk 0:01:19]}  Bb6 {[%clk 0:00:20]} 27. a4 {[%clk 0:01:19]}  a6 {[%clk 0:00:16]} 28. a5 {[%clk 0:01:19]}  Bc5 {[%clk 0:00:15]} 29. Rb7 {[%clk 0:01:06]}  h5 {[%clk 0:00:13]} 30. Rdd7 {[%clk 0:01:02]}  Bd6 {[%clk 0:00:02]} 31. Rb6 {[%clk 0:01:00]}  Bc5 {[%clk 0:00:02]} 32. Rbb7 {[%clk 0:00:53]}  Bd6 {[%clk 0:00:03]} 33. Bd4 {[%clk 0:00:39]}  Be5 {[%clk 0:00:03]} 34. Bc5 {[%clk 0:00:39]}  Rf6+ {[%clk 0:00:03]} 35. Kg2 {[%clk 0:00:33]}  Rc8 {[%clk 0:00:03]} 36. b4 {[%clk 0:00:33]}  Rf5 {[%clk 0:00:03]} 37. Ra7 {[%clk 0:00:26]}  Bc3 {[%clk 0:00:02]} 38. Rxa6 {[%clk 0:00:24]}  Kh7 {[%clk 0:00:02]} 39. Raa7 {[%clk 0:00:23]}  Kg7 {[%clk 0:00:02]} 40. a6 {[%clk 0:00:23]}  Rb8 {[%clk 0:00:01]} 41. Rab7 {[%clk 0:00:23]}  Ra8 {[%clk 0:00:02]} 42. a7 {[%clk 0:00:23]}  Be1 {[%clk 0:00:00]} 43. Rb8 {[%clk 0:00:21]} 1-0

[Event "January 2 Late 2024"]
[Site "https://www.chess.com"]
[Date "2024.01.02"]
[Round "6"]
[White "Nihal Sarin"]
[Black "Anton Guijarro, David"]
[Result "1-0"]
[Board "4"]
[TimeControl "180+1"]
[WhiteFideId "25092340"]
[BlackFideId "2285525"]
[WhiteElo "3210"]
[BlackElo "2983"]
[WhiteTeam "IND"]
[BlackTeam "ESP"]
[WhiteClock "0:00:04"]
[BlackClock "0:00:00"]

1. d4 {[%clk 0:03:00]}  Nf6 {[%clk 0:02:59]} 2. c4 {[%clk 0:03:01]}  g6 {[%clk 0:02:59]} 3. Nc3 {[%clk 0:03:01]}  Bg7 {[%clk 0:02:59]} 4. e4 {[%clk 0:03:00]}  d6 {[%clk 0:02:59]} 5. h3 {[%clk 0:03:01]}  Nbd7 {[%clk 0:02:58]} 6. Be3 {[%clk 0:03:01]}  e5 {[%clk 0:02:58]} 7. d5 {[%clk 0:03:01]}  h5 {[%clk 0:02:58]} 8. Qd2 {[%clk 0:02:56]}  Nc5 {[%clk 0:02:55]} 9. Bd3 {[%clk 0:02:56]}  h4 {[%clk 0:02:50]} 10. b4 {[%clk 0:02:49]}  Nxd3+ {[%clk 0:02:49]} 11. Qxd3 {[%clk 0:02:49]}  a5 {[%clk 0:02:48]} 12. bxa5 {[%clk 0:02:50]}  Nh5 {[%clk 0:02:48]} 13. Nge2 {[%clk 0:02:45]}  f5 {[%clk 0:02:39]} 14. c5 {[%clk 0:02:41]}  O-O {[%clk 0:02:33]} 15. cxd6 {[%clk 0:02:25]}  cxd6 {[%clk 0:02:32]} 16. f3 {[%clk 0:02:16]}  Nf4 {[%clk 0:02:01]} 17. Nxf4 {[%clk 0:02:10]}  exf4 {[%clk 0:02:02]} 18. Bb6 {[%clk 0:01:59]}  Qf6 {[%clk 0:01:18]} 19. Rc1 {[%clk 0:01:31]}  Bd7 {[%clk 0:01:17]} 20. O-O {[%clk 0:01:24]}  Rac8 {[%clk 0:01:17]} 21. Ne2 {[%clk 0:01:16]}  fxe4 {[%clk 0:01:10]} 22. fxe4 {[%clk 0:01:05]}  Rxc1 {[%clk 0:01:02]} 23. Nxc1 {[%clk 0:01:05]}  g5 {[%clk 0:00:51]} 24. Ne2 {[%clk 0:01:03]}  Qg6 {[%clk 0:00:50]} 25. Bd4 {[%clk 0:01:02]}  Be5 {[%clk 0:00:50]} 26. Bxe5 {[%clk 0:00:58]}  dxe5 {[%clk 0:00:51]} 27. d6 {[%clk 0:00:59]}  Bc6 {[%clk 0:00:45]} 28. Nc3 {[%clk 0:00:49]}  Kh7 {[%clk 0:00:29]} 29. Kh2 {[%clk 0:00:41]}  g4 {[%clk 0:00:28]} 30. hxg4 {[%clk 0:00:41]}  Qxg4 {[%clk 0:00:29]} 31. Rf3 {[%clk 0:00:26]}  Rg8 {[%clk 0:00:26]} 32. Qd2 {[%clk 0:00:26]}  Qe6 {[%clk 0:00:24]} 33. Rh3 {[%clk 0:00:24]}  Qf6 {[%clk 0:00:19]} 34. Nd5 {[%clk 0:00:20]}  Bxd5 {[%clk 0:00:14]} 35. Qxd5 {[%clk 0:00:19]}  Rg3 {[%clk 0:00:11]} 36. d7 {[%clk 0:00:16]}  f3 {[%clk 0:00:11]} 37. Rxg3 {[%clk 0:00:04]}  hxg3+ {[%clk 0:00:11]} 38. Kxg3 {[%clk 0:00:05]}  f2 {[%clk 0:00:09]} 39. d8=Q {[%clk 0:00:05]}  Qf4+ {[%clk 0:00:07]} 40. Kh3 {[%clk 0:00:05]}  Qe3+ {[%clk 0:00:02]} 41. Kg4 {[%clk 0:00:03]}  Qf4+ {[%clk 0:00:02]} 42. Kh3 {[%clk 0:00:04]}  Qe3+ {[%clk 0:00:00]} 43. Kh2 {[%clk 0:00:04]} 1-0

[Event "January 2 Late 2024"]
[Site "https://www.chess.com"]
[Date "2024.01.02"]
[Round "6"]
[White "Matlakov, Maxim"]
[Black "Naroditsky, Daniel"]
[Result "1/2-1/2"]
[Board "5"]
[TimeControl "180+1"]
[WhiteFideId "4168003"]
[BlackFideId "2026961"]
[WhiteElo "2965"]
[BlackElo "3150"]
[WhiteTeam "RUS"]
[BlackTeam "USA"]
[WhiteClock "0:00:43"]
[BlackClock "0:01:34"]

1. d4 {[%clk 0:03:00]}  Nf6 {[%clk 0:03:00]} 2. Nf3 {[%clk 0:03:00]}  g6 {[%clk 0:03:00]} 3. c4 {[%clk 0:03:00]}  Bg7 {[%clk 0:03:01]} 4. Nc3 {[%clk 0:03:01]}  O-O {[%clk 0:03:02]} 5. e4 {[%clk 0:03:01]}  d6 {[%clk 0:03:03]} 6. Be2 {[%clk 0:03:02]}  e5 {[%clk 0:03:03]} 7. O-O {[%clk 0:03:02]}  Na6 {[%clk 0:02:58]} 8. Be3 {[%clk 0:03:01]}  Qe7 {[%clk 0:02:58]} 9. dxe5 {[%clk 0:03:01]}  dxe5 {[%clk 0:02:59]} 10. Nd5 {[%clk 0:03:01]}  Qd8 {[%clk 0:02:58]} 11. Qc2 {[%clk 0:03:01]}  c6 {[%clk 0:02:57]} 12. Nxf6+ {[%clk 0:03:01]}  Qxf6 {[%clk 0:02:56]} 13. h3 {[%clk 0:02:56]}  c5 {[%clk 0:02:45]} 14. Rfd1 {[%clk 0:02:51]}  b6 {[%clk 0:02:41]} 15. a3 {[%clk 0:02:49]}  Bb7 {[%clk 0:02:39]} 16. Nd2 {[%clk 0:02:13]}  Nc7 {[%clk 0:02:30]} 17. Nb1 {[%clk 0:02:08]}  Ne6 {[%clk 0:02:30]} 18. Nc3 {[%clk 0:02:08]}  Nd4 {[%clk 0:02:30]} 19. Bxd4 {[%clk 0:02:07]}  exd4 {[%clk 0:02:31]} 20. Nd5 {[%clk 0:02:07]}  Qd6 {[%clk 0:02:13]} 21. Bd3 {[%clk 0:02:05]}  Rfe8 {[%clk 0:02:10]} 22. Re1 {[%clk 0:02:03]}  Bxd5 {[%clk 0:02:09]} 23. exd5 {[%clk 0:01:54]}  Bf6 {[%clk 0:02:04]} 24. Qa4 {[%clk 0:01:52]}  Re7 {[%clk 0:01:58]} 25. Qc6 {[%clk 0:01:29]}  Rd8 {[%clk 0:01:58]} 26. b4 {[%clk 0:01:12]}  Rxe1+ {[%clk 0:01:38]} 27. Rxe1 {[%clk 0:01:13]}  Be7 {[%clk 0:01:38]} 28. Qb7 {[%clk 0:00:43]}  Rd7 {[%clk 0:01:33]} 29. Qc8+ {[%clk 0:00:43]}  Rd8 {[%clk 0:01:33]} 30. Qb7 {[%clk 0:00:43]}  Rd7 {[%clk 0:01:33]} 31. Qc8+ {[%clk 0:00:43]}  Rd8 {[%clk 0:01:34]} 32. Qb7 {[%clk 0:00:43]} 1/2-1/2

[Event "January 2 Late 2024"]
[Site "https://www.chess.com"]
[Date "2024.01.02"]
[Round "6"]
[White "Martinez Alcantara, Jose Eduardo"]
[Black "Alekseenko, Kirill"]
[Result "1/2-1/2"]
[Board "7"]
[TimeControl "180+1"]
[WhiteFideId "3805662"]
[BlackFideId "4135539"]
[WhiteElo "3052"]
[BlackElo "2936"]
[WhiteTeam "PER"]
[BlackTeam "AUT"]
[WhiteClock "0:00:04"]
[BlackClock "0:00:04"]

1. e4 {[%clk 0:03:00]}  e5 {[%clk 0:02:58]} 2. Nf3 {[%clk 0:03:01]}  Nc6 {[%clk 0:02:59]} 3. Bb5 {[%clk 0:03:02]}  a6 {[%clk 0:03:00]} 4. Ba4 {[%clk 0:03:02]}  d6 {[%clk 0:03:00]} 5. c3 {[%clk 0:03:02]}  Bd7 {[%clk 0:03:01]} 6. d4 {[%clk 0:03:02]}  Nge7 {[%clk 0:03:02]} 7. h4 {[%clk 0:02:52]}  Ng8 {[%clk 0:02:51]} 8. Bg5 {[%clk 0:02:44]}  Be7 {[%clk 0:02:46]} 9. dxe5 {[%clk 0:02:36]}  Nxe5 {[%clk 0:02:41]} 10. Nxe5 {[%clk 0:02:35]}  dxe5 {[%clk 0:02:40]} 11. Nd2 {[%clk 0:02:26]}  Bxa4 {[%clk 0:01:50]} 12. Qxa4+ {[%clk 0:02:24]}  b5 {[%clk 0:01:51]} 13. Qb3 {[%clk 0:01:47]}  Bxg5 {[%clk 0:01:50]} 14. hxg5 {[%clk 0:01:47]}  Qxg5 {[%clk 0:01:49]} 15. Nf3 {[%clk 0:01:48]}  Qe7 {[%clk 0:01:32]} 16. Qd5 {[%clk 0:01:43]}  Rd8 {[%clk 0:01:32]} 17. Qc6+ {[%clk 0:01:30]}  Qd7 {[%clk 0:01:28]} 18. Nxe5 {[%clk 0:01:28]}  Qxc6 {[%clk 0:01:29]} 19. Nxc6 {[%clk 0:01:29]}  Rd6 {[%clk 0:01:29]} 20. Nd4 {[%clk 0:01:27]}  Ne7 {[%clk 0:01:26]} 21. Ke2 {[%clk 0:01:21]}  O-O {[%clk 0:01:21]} 22. Rhd1 {[%clk 0:01:21]}  Re8 {[%clk 0:01:14]} 23. Nb3 {[%clk 0:00:54]}  Rg6 {[%clk 0:01:14]} 24. Kf1 {[%clk 0:00:53]}  f5 {[%clk 0:01:02]} 25. Re1 {[%clk 0:00:47]}  Kf7 {[%clk 0:00:55]} 26. Rad1 {[%clk 0:00:44]}  Rd6 {[%clk 0:00:51]} 27. Rxd6 {[%clk 0:00:39]}  cxd6 {[%clk 0:00:52]} 28. Rd1 {[%clk 0:00:38]}  fxe4 {[%clk 0:00:37]} 29. Rxd6 {[%clk 0:00:37]}  Nf5 {[%clk 0:00:38]} 30. Rxa6 {[%clk 0:00:33]}  e3 {[%clk 0:00:38]} 31. fxe3 {[%clk 0:00:33]}  Nxe3+ {[%clk 0:00:39]} 32. Kg1 {[%clk 0:00:18]}  Ng4 {[%clk 0:00:37]} 33. g3 {[%clk 0:00:19]}  Re2 {[%clk 0:00:31]} 34. Nd4 {[%clk 0:00:16]}  Rxb2 {[%clk 0:00:29]} 35. Ra7+ {[%clk 0:00:16]}  Kf6 {[%clk 0:00:27]} 36. Rb7 {[%clk 0:00:17]}  Rxa2 {[%clk 0:00:24]} 37. Rxb5 {[%clk 0:00:17]}  g6 {[%clk 0:00:24]} 38. Rb7 {[%clk 0:00:15]}  h5 {[%clk 0:00:23]} 39. Rb6+ {[%clk 0:00:16]}  Kf7 {[%clk 0:00:20]} 40. Rb7+ {[%clk 0:00:14]}  Kf6 {[%clk 0:00:20]} 41. Rb6+ {[%clk 0:00:15]}  Kg7 {[%clk 0:00:20]} 42. Ne6+ {[%clk 0:00:15]}  Kf7 {[%clk 0:00:18]} 43. Ng5+ {[%clk 0:00:15]}  Kg7 {[%clk 0:00:17]} 44. Ne6+ {[%clk 0:00:15]}  Kh6 {[%clk 0:00:18]} 45. Nf4 {[%clk 0:00:16]}  Ne5 {[%clk 0:00:17]} 46. Re6 {[%clk 0:00:15]}  Ra5 {[%clk 0:00:16]} 47. Kg2 {[%clk 0:00:10]}  Kg5 {[%clk 0:00:16]} 48. Kh3 {[%clk 0:00:10]}  Kf5 {[%clk 0:00:16]} 49. Re8 {[%clk 0:00:08]}  Ra3 {[%clk 0:00:09]} 50. Rf8+ {[%clk 0:00:07]}  Ke4 {[%clk 0:00:10]} 51. Re8 {[%clk 0:00:07]}  Kf5 {[%clk 0:00:10]} 52. Rf8+ {[%clk 0:00:06]}  Ke4 {[%clk 0:00:10]} 53. Re8 {[%clk 0:00:03]}  Ra6 {[%clk 0:00:06]} 54. c4 {[%clk 0:00:03]}  Kf5 {[%clk 0:00:06]} 55. Rf8+ {[%clk 0:00:03]}  Ke4 {[%clk 0:00:07]} 56. c5 {[%clk 0:00:03]}  g5 {[%clk 0:00:06]} 57. Nxh5 {[%clk 0:00:03]}  g4+ {[%clk 0:00:05]} 58. Kg2 {[%clk 0:00:02]}  Ra2+ {[%clk 0:00:06]} 59. Rf2 {[%clk 0:00:02]}  Ra5 {[%clk 0:00:05]} 60. Nf6+ {[%clk 0:00:02]}  Kd4 {[%clk 0:00:05]} 61. Rf4+ {[%clk 0:00:02]}  Kxc5 {[%clk 0:00:04]} 62. Nxg4 {[%clk 0:00:03]}  Ra2+ {[%clk 0:00:04]} 63. Kh3 {[%clk 0:00:03]}  Nd3 {[%clk 0:00:04]} 64. Rf5+ {[%clk 0:00:03]}  Kd6 {[%clk 0:00:05]} 65. Kh4 {[%clk 0:00:04]}  Ra4 {[%clk 0:00:05]} 66. Kg5 {[%clk 0:00:04]}  Ke6 {[%clk 0:00:05]} 67. Rf6+ {[%clk 0:00:04]}  Ke7 {[%clk 0:00:06]} 68. Rb6 {[%clk 0:00:03]}  Ra5+ {[%clk 0:00:06]} 69. Kh4 {[%clk 0:00:03]}  Ra4 {[%clk 0:00:06]} 70. Rb7+ {[%clk 0:00:03]}  Ke6 {[%clk 0:00:07]} 71. Kg5 {[%clk 0:00:02]}  Nc5 {[%clk 0:00:05]} 72. Rb6+ {[%clk 0:00:02]}  Ke7 {[%clk 0:00:05]} 73. Kh5 {[%clk 0:00:01]}  Ne6 {[%clk 0:00:06]} 74. Rb7+ {[%clk 0:00:01]}  Kd6 {[%clk 0:00:06]} 75. Nh6 {[%clk 0:00:01]}  Ra5+ {[%clk 0:00:07]} 76. Kg6 {[%clk 0:00:02]}  Nd8 {[%clk 0:00:07]} 77. Rb8 {[%clk 0:00:01]}  Kc7 {[%clk 0:00:07]} 78. Rb1 {[%clk 0:00:01]}  Ra6+ {[%clk 0:00:08]} 79. Kh7 {[%clk 0:00:02]}  Ne6 {[%clk 0:00:08]} 80. Rc1+ {[%clk 0:00:02]}  Kd7 {[%clk 0:00:08]} 81. g4 {[%clk 0:00:03]}  Ke7 {[%clk 0:00:09]} 82. Nf5+ {[%clk 0:00:03]}  Kf6 {[%clk 0:00:09]} 83. Rc8 {[%clk 0:00:02]}  Ng5+ {[%clk 0:00:08]} 84. Kg8 {[%clk 0:00:02]}  Ra7 {[%clk 0:00:08]} 85. Rf8+ {[%clk 0:00:02]}  Ke5 {[%clk 0:00:06]} 86. Nh4 {[%clk 0:00:02]}  Ne6 {[%clk 0:00:06]} 87. Ng6+ {[%clk 0:00:03]}  Ke4 {[%clk 0:00:04]} 88. Rf6 {[%clk 0:00:03]}  Kd5 {[%clk 0:00:04]} 89. Kh8 {[%clk 0:00:01]}  Ra8+ {[%clk 0:00:04]} 90. Kh7 {[%clk 0:00:01]}  Ra7+ {[%clk 0:00:05]} 91. Kg8 {[%clk 0:00:02]}  Ra8+ {[%clk 0:00:05]} 92. Kf7 {[%clk 0:00:02]}  Nd4 {[%clk 0:00:03]} 93. Nf4+ {[%clk 0:00:02]}  Ke4 {[%clk 0:00:03]} 94. Ng6 {[%clk 0:00:02]}  Ra7+ {[%clk 0:00:04]} 95. Kf8 {[%clk 0:00:02]}  Nf3 {[%clk 0:00:04]} 96. Rf4+ {[%clk 0:00:02]}  Ke3 {[%clk 0:00:05]} 97. Rf5 {[%clk 0:00:03]}  Ke4 {[%clk 0:00:05]} 98. Rf4+ {[%clk 0:00:03]}  Ke3 {[%clk 0:00:05]} 99. Rf6 {[%clk 0:00:04]}  Ng5 {[%clk 0:00:04]} 100. Kg8 {[%clk 0:00:03]}  Ra8+ {[%clk 0:00:04]} 101. Kg7 {[%clk 0:00:04]}  Ra7+ {[%clk 0:00:05]} 102. Kh6 {[%clk 0:00:04]}  Ne4 {[%clk 0:00:05]} 103. Re6 {[%clk 0:00:04]}  Kf3 {[%clk 0:00:06]} 104. g5 {[%clk 0:00:02]}  Nxg5 {[%clk 0:00:05]} 105. Kxg5 {[%clk 0:00:02]}  Ra8 {[%clk 0:00:06]} 106. Nh4+ {[%clk 0:00:02]}  Kf2 {[%clk 0:00:06]} 107. Kg4 {[%clk 0:00:02]}  Ra4+ {[%clk 0:00:05]} 108. Kg5 {[%clk 0:00:02]}  Ra5+ {[%clk 0:00:05]} 109. Nf5 {[%clk 0:00:03]}  Ra4 {[%clk 0:00:06]} 110. Rb6 {[%clk 0:00:03]}  Ra8 {[%clk 0:00:04]} 111. Rb4 {[%clk 0:00:02]}  Ra7 {[%clk 0:00:04]} 112. Kf4 {[%clk 0:00:02]}  Ra2 {[%clk 0:00:04]} 113. Ng3 {[%clk 0:00:03]}  Ra8 {[%clk 0:00:04]} 114. Rb2+ {[%clk 0:00:03]}  Ke1 {[%clk 0:00:04]} 115. Ne4 {[%clk 0:00:03]}  Kd1 {[%clk 0:00:04]} 116. Rh2 {[%clk 0:00:03]}  Kc1 {[%clk 0:00:05]} 117. Ke5 {[%clk 0:00:03]}  Rd8 {[%clk 0:00:05]} 118. Nc5 {[%clk 0:00:03]}  Kd1 {[%clk 0:00:04]} 119. Ke4 {[%clk 0:00:03]}  Re8+ {[%clk 0:00:04]} 120. Kd4 {[%clk 0:00:03]}  Rd8+ {[%clk 0:00:05]} 121. Ke3 {[%clk 0:00:03]}  Re8+ {[%clk 0:00:05]} 122. Ne4 {[%clk 0:00:04]}  Kc1 {[%clk 0:00:05]} 123. Kd3 {[%clk 0:00:04]}  Rc8 {[%clk 0:00:05]} 124. Nc3 {[%clk 0:00:03]}  Rd8+ {[%clk 0:00:05]} 125. Ke3 {[%clk 0:00:03]}  Rd3+ {[%clk 0:00:04]} 126. Kxd3 {[%clk 0:00:04]} 1/2-1/2

[Event "January 2 Late 2024"]
[Site "https://www.chess.com"]
[Date "2024.01.02"]
[Round "6"]
[White "Mahdavi, Reza"]
[Black "Pranav, V"]
[Result "1/2-1/2"]
[Board "8"]
[TimeControl "180+1"]
[WhiteFideId "12595926"]
[BlackFideId "25060783"]
[WhiteElo "2865"]
[BlackElo "3044"]
[WhiteTeam "IRI"]
[BlackTeam "IND"]
[WhiteClock "0:00:04"]
[BlackClock "0:00:02"]

1. e4 {[%clk 0:02:53]}  e5 {[%clk 0:02:59]} 2. Nf3 {[%clk 0:02:52]}  Nc6 {[%clk 0:03:00]} 3. Nc3 {[%clk 0:02:52]}  Nf6 {[%clk 0:03:00]} 4. d4 {[%clk 0:02:53]}  exd4 {[%clk 0:03:01]} 5. Nxd4 {[%clk 0:02:53]}  Bb4 {[%clk 0:03:01]} 6. Nxc6 {[%clk 0:02:54]}  bxc6 {[%clk 0:03:02]} 7. Bd3 {[%clk 0:02:54]}  d5 {[%clk 0:03:03]} 8. Bd2 {[%clk 0:02:55]}  O-O {[%clk 0:03:03]} 9. O-O {[%clk 0:02:55]}  Re8 {[%clk 0:03:01]} 10. Nxd5 {[%clk 0:02:47]}  Nxd5 {[%clk 0:02:50]} 11. exd5 {[%clk 0:02:36]}  Bxd2 {[%clk 0:02:47]} 12. Qxd2 {[%clk 0:02:37]}  cxd5 {[%clk 0:02:47]} 13. Rfe1 {[%clk 0:02:38]}  Be6 {[%clk 0:02:39]} 14. b4 {[%clk 0:02:36]}  Qd6 {[%clk 0:02:35]} 15. a4 {[%clk 0:02:35]}  c5 {[%clk 0:02:28]} 16. b5 {[%clk 0:02:33]}  Rad8 {[%clk 0:02:24]} 17. Bf1 {[%clk 0:02:26]}  d4 {[%clk 0:02:20]} 18. c4 {[%clk 0:02:17]}  dxc3 {[%clk 0:02:03]} 19. Qxc3 {[%clk 0:02:16]}  h6 {[%clk 0:02:00]} 20. a5 {[%clk 0:02:15]}  c4 {[%clk 0:01:46]} 21. h3 {[%clk 0:01:55]}  Rb8 {[%clk 0:01:30]} 22. Re5 {[%clk 0:01:42]}  Rec8 {[%clk 0:01:16]} 23. Rae1 {[%clk 0:00:50]}  Qd7 {[%clk 0:01:13]} 24. Rb1 {[%clk 0:00:44]}  Bf5 {[%clk 0:00:48]} 25. Rb2 {[%clk 0:00:40]}  Bd3 {[%clk 0:00:43]} 26. Rd2 {[%clk 0:00:33]}  Qd6 {[%clk 0:00:22]} 27. Bxd3 {[%clk 0:00:20]}  cxd3 {[%clk 0:00:22]} 28. Rxd3 {[%clk 0:00:21]}  Qf6 {[%clk 0:00:22]} 29. Qd4 {[%clk 0:00:18]}  Rd8 {[%clk 0:00:17]} 30. Rd5 {[%clk 0:00:19]}  Rxd5 {[%clk 0:00:17]} 31. Qxd5 {[%clk 0:00:19]}  Qa1+ {[%clk 0:00:17]} 32. Kh2 {[%clk 0:00:19]}  Qxa5 {[%clk 0:00:17]} 33. Rf3 {[%clk 0:00:15]}  Qc7+ {[%clk 0:00:16]} 34. g3 {[%clk 0:00:16]}  Re8 {[%clk 0:00:13]} 35. h4 {[%clk 0:00:12]}  Re6 {[%clk 0:00:10]} 36. Qa2 {[%clk 0:00:10]}  Re5 {[%clk 0:00:05]} 37. Ra3 {[%clk 0:00:08]}  Re7 {[%clk 0:00:06]} 38. Ra6 {[%clk 0:00:07]}  Qd7 {[%clk 0:00:06]} 39. Rc6 {[%clk 0:00:07]}  Qf5 {[%clk 0:00:04]} 40. Qc2 {[%clk 0:00:03]}  Qxc2 {[%clk 0:00:03]} 41. Rxc2 {[%clk 0:00:04]}  Rb7 {[%clk 0:00:03]} 42. Rc5 {[%clk 0:00:04]}  Rb6 {[%clk 0:00:03]} 43. Kg2 {[%clk 0:00:04]}  a6 {[%clk 0:00:03]} 44. bxa6 {[%clk 0:00:05]}  Rxa6 {[%clk 0:00:04]} 45. h5 {[%clk 0:00:05]}  g6 {[%clk 0:00:02]} 46. hxg6 {[%clk 0:00:04]} 1/2-1/2

[Event "January 2 Late 2024"]
[Site "https://www.chess.com"]
[Date "2024.01.02"]
[Round "6"]
[White "Kadric, Denis"]
[Black "Bluebaum, Matthias"]
[Result "0-1"]
[Board "9"]
[TimeControl "180+1"]
[WhiteFideId "14403803"]
[BlackFideId "24651516"]
[WhiteElo "2838"]
[BlackElo "3026"]
[WhiteTeam "MNE"]
[BlackTeam "GER"]
[WhiteClock "0:00:00"]
[BlackClock "0:00:40"]

1. e4 {[%clk 0:03:00]}  e6 {[%clk 0:03:00]} 2. d3 {[%clk 0:03:00]}  d5 {[%clk 0:03:00]} 3. Nd2 {[%clk 0:03:00]}  Nf6 {[%clk 0:03:00]} 4. e5 {[%clk 0:03:01]}  Nfd7 {[%clk 0:03:00]} 5. f4 {[%clk 0:03:01]}  c5 {[%clk 0:02:58]} 6. Ndf3 {[%clk 0:03:02]}  Nc6 {[%clk 0:02:58]} 7. Nh3 {[%clk 0:03:02]}  f6 {[%clk 0:02:54]} 8. exf6 {[%clk 0:03:01]}  Qxf6 {[%clk 0:02:55]} 9. g3 {[%clk 0:02:58]}  Bd6 {[%clk 0:02:55]} 10. Bg2 {[%clk 0:02:58]}  O-O {[%clk 0:02:55]} 11. O-O {[%clk 0:02:58]}  Nb6 {[%clk 0:02:55]} 12. c3 {[%clk 0:02:56]}  Bd7 {[%clk 0:02:52]} 13. Nf2 {[%clk 0:02:48]}  e5 {[%clk 0:02:37]} 14. fxe5 {[%clk 0:02:40]}  Nxe5 {[%clk 0:02:37]} 15. Nxe5 {[%clk 0:02:40]}  Qxe5 {[%clk 0:02:32]} 16. d4 {[%clk 0:02:02]}  cxd4 {[%clk 0:02:28]} 17. cxd4 {[%clk 0:02:03]}  Qe7 {[%clk 0:02:22]} 18. Qh5 {[%clk 0:01:57]}  Rf5 {[%clk 0:02:16]} 19. Qd1 {[%clk 0:01:50]}  Raf8 {[%clk 0:02:14]} 20. Bd2 {[%clk 0:01:40]}  Qf6 {[%clk 0:02:00]} 21. Qe2 {[%clk 0:00:55]}  a6 {[%clk 0:01:47]} 22. Ng4 {[%clk 0:00:30]}  Qxd4+ {[%clk 0:01:34]} 23. Ne3 {[%clk 0:00:28]}  Nc4 {[%clk 0:01:13]} 24. Rxf5 {[%clk 0:00:21]}  Rxf5 {[%clk 0:01:13]} 25. Rd1 {[%clk 0:00:17]}  Bc5 {[%clk 0:01:13]} 26. Bc1 {[%clk 0:00:11]}  Qxe3+ {[%clk 0:00:55]} 27. Bxe3 {[%clk 0:00:11]}  Nxe3 {[%clk 0:00:56]} 28. Kh1 {[%clk 0:00:06]}  Bb5 {[%clk 0:00:53]} 29. Qd2 {[%clk 0:00:03]}  Nxg2 {[%clk 0:00:42]} 30. Kxg2 {[%clk 0:00:04]}  Bc6 {[%clk 0:00:42]} 31. g4 {[%clk 0:00:00]}  d4+ {[%clk 0:00:40]} 0-1